Workbook

Sheet 1. Info
AC1: =IF('3. Data_Input_Sheet'!M12=0, "", '3. Data_Input_Sheet'!M12) -> Close of Discovery
P11: Version | Q11: 4
F16: Utility Name | G16: Oshawa PUC Networks Inc.
F18: Service Territory | G18: Oshawa
F20: Assigned EB Number | G20: EB-2014-0101 | AA20: Company Name
Z21: 1 | AA21: Algoma Power Inc.
F22: Name and Title | G22: David Savage, Corporate Controller | Z22: 2 | AA22: Atikokan Hydro Inc.
Z23: 3 | AA23: Attawapiskat Power Corporation
F24: Phone Number | G24: 905-743 5219 | Z24: 4 | AA24: Bluewater Power Distribution Corp.
Z25: 5 | AA25: Brant County Power
F26: Email Address | G26: dsavage@opuc.on.ca | Z26: 6 | AA26: Brantford Power Inc.
Z27: 7 | AA27: Burlington Hydro Inc.
Z28: 8 | AA28: Cambridge and North Dumfries Hydro
Z29: 9 | AA29: Canadian Niagara Power Inc. – Eastern Ontario Power/Fort Erie/Port Colborne
Z30: 10 | AA30: Centre Wellington Hydro Ltd.
Z31: 11 | AA31: Chapleau Public Utilities Corporation
Z32: 12 | AA32: COLLUS Power Corp.
Z33: 13 | AA33: Cooperative Hydro Embrun Inc.
Z34: 14 | AA34: E.L.K. Energy Inc.
Z35: 15 | AA35: Enersource Hydro Mississauga Inc.
Z36: 16 | AA36: Entegrus Powerlines Inc.
Z37: 17 | AA37: ENWIN Utilities Ltd.
Z38: 18 | AA38: Erie Thames Powerlines Corp.
Z39: 19 | AA39: Espanola Regional Hydro Distribution Corporation
Z40: 20 | AA40: Essex Powerlines Corporation
Z41: 21 | AA41: Festival Hydro Inc.
Z42: 22 | AA42: Fort Albany Power Corporation
Z43: 23 | AA43: Fort Frances Power Corporation
Z44: 24 | AA44: Greater Sudbury Hydro Inc.
Z45: 25 | AA45: Grimsby Power Inc.
Z46: 26 | AA46: Guelph Hydro Electric Systems Inc.
Z47: 27 | AA47: Haldimand County Hydro Inc.
Z48: 28 | AA48: Halton Hills Hydro Inc.
Z49: 29 | AA49: Hearst Power Distribution Co. Ltd.
Z50: 30 | AA50: Horizon Utilities Corporation
Z51: 31 | AA51: Hydro 2000 Inc.
Z52: 32 | AA52: Hydro Hawkesbury Inc.
Z53: 33 | AA53: Hydro One Brampton Networks Inc.
Z54: 34 | AA54: Hydro One Networks Inc.
Z55: 35 | AA55: Hydro One Remote Communities Inc.
Z56: 36 | AA56: Hydro Ottawa Limited
Z57: 37 | AA57: Innisfil Hydro Dist. Systems Limited
Z58: 38 | AA58: Kashechewan Power Corporation
Z59: 39 | AA59: Kenora Hydro Electric Corporation Ltd.
Z60: 40 | AA60: Kingston Hydro Corporation
Z61: 41 | AA61: Kitchener-Wilmot Hydro Inc.
Z62: 42 | AA62: Lakefront Utilities Inc.
Z63: 43 | AA63: Lakeland Power Distribution Ltd.
Z64: 44 | AA64: London Hydro Inc.
Z65: 45 | AA65: Midland Power Utility Corporation
Z66: 46 | AA66: Milton Hydro Distribution Inc.
Z67: 47 | AA67: Newmarket – Tay Power Distribution Ltd.
Z68: 48 | AA68: Niagara Peninsula Energy Inc.
Z69: 49 | AA69: Niagara-on-the-Lake Hydro Inc.
Z70: 50 | AA70: Norfolk Power Distribution Ltd.
Z71: 51 | AA71: North Bay Hydro Distribution Limited
Z72: 52 | AA72: Northern Ontario Wires Inc.
Z73: 53 | AA73: Oakville Hydro Distribution Inc.
Z74: 54 | AA74: Orangeville Hydro Limited
Z75: 55 | AA75: Orillia Power Distribution Corp.
Z76: 56 | AA76: Oshawa PUC Networks Inc.
Z77: 57 | AA77: Ottawa River Power Corporation
Z78: 58 | AA78: Parry Sound Power Corporation
Z79: 59 | AA79: Peterborough Distribution Inc.
Z80: 60 | AA80: PowerStream Inc. - Barrie
Z81: 61 | AA81: PowerStream Inc. - South
Z82: 62 | AA82: PUC Distribution Inc.
Z83: 63 | AA83: Renfrew Hydro Inc.
Z84: 64 | AA84: Rideau St. Lawrence Distribution Inc.
Z85: 65 | AA85: St. Thomas Energy Inc.
Z86: 66 | AA86: Sioux Lookout Hydro Inc.
Z87: 67 | AA87: Thunder Bay Hydro Electricity Distribution Inc.
Z88: 68 | AA88: Tillsonburg Hydro Inc.
Z89: 69 | AA89: Toronto Hydro-Electric System Limited
Z90: 70 | AA90: Veridian Connections Inc.
Z91: 71 | AA91: Wasaga Distribution Inc.
Z92: 72 | AA92: Waterloo North Hydro Inc.
Z93: 73 | AA93: Welland Hydro-Electric System Corp.
Z94: 74 | AA94: Wellington North Power Inc.
Z95: 75 | AA95: West Coast Huron Energy Inc.
Z96: 76 | AA96: Westario Power Inc.
Z97: 77 | AA97: Whitby Hydro Electric Corporation
Z98: 78 | AA98: Woodstock Hydro Services Inc.

Sheet 2. Table of Contents
D11: 1. Info | I11: 6. Taxes_PILs
D13: 2. Table of Contents | I13: 7. Cost_of_Capital
D15: 3. Data_Input_Sheet | I15: 8. Rev_Def_Suff
D17: 4. Rate_Base | I17: 9. Rev_Reqt
D19: 5. Utility Income
A24: Notes:
A25: (1) | B25: Pale green cells represent inputs
A26: (2) | B26: Pale green boxes at the bottom of each page are for additional notes
A27: (3) | B27: Pale yellow cells represent drop-down lists
A28: (4) | B28: Please note that this model uses MACROS. Before starting, please ensure that macros have been enabled.
A29: (5) | B29: Completed versions of the Revenue Requirement Work Form are required to be filed in working Microsoft Excel format.

Sheet 3. Data_Input_Sheet
U1: =CONCATENATE('2. Table of Contents'!$F$6," ",'2. Table of Contents'!$G$6) -> 
B9: Data Input (1)
E12: Initial Application | G12: (2) | I12: =IF(ISBLANK(M12),"","Adjustments") -> Adjustments | M12: Close of Discovery | O12: (6) | Q12: =IF(ISBLANK(M12),"","Adjustments") -> Adjustments | U12: Per Board Decision
B15: 1 | C15: Rate Base
C16: Gross Fixed Assets (average) | E16: 193294.9524 | I16: -892.0285361 | M16: =IF(ISBLANK(E16),0,E16+I16) -> 192402.9238 | Q16: =Data!C5-M16 -> -5050.000025 | U16: =IF(ISBLANK(E16),"",E16+I16+Q16) -> 187352.9238
C17: Accumulated Depreciation (average) | E17: -91145.93959 | G17: (5) | I17: -92.90914597 | M17: =IF(ISBLANK(E17),0,E17+I17) -> -91238.84874 | Q17: =Data!C6-M17 -> -124.5579744 | U17: =IF(ISBLANK(E17),"",E17+I17+Q17) -> -91363.40671
C18: Allowance for Working Capital:
C19: Controllable Expenses | E19: 12886.68774 | I19: 133.8376687 | M19: =IF(ISBLANK(E19),0,E19+I19) -> 13020.52541 | Q19: =Data!C8-M19 -> 0 | U19: =IF(ISBLANK(E19),"",E19+I19+Q19) -> 13020.52541
C20: Cost of Power | E20: 123586.7395 | I20: 1716.714425 | M20: =IF(ISBLANK(E20),0,E20+I20) -> 125303.4539 | Q20: =Data!C9-M20 -> -4413.667887 | U20: =IF(ISBLANK(E20),"",E20+I20+Q20) -> 120889.786
C21: Working Capital Rate (%) | E21: 0.13 | G21: (9) | M21: 0.1002 | O21: (9) | U21: =Data!C10 -> 0.0937 | W21: (9)
B23: 2 | C23: Utility Income
C24: Operating Revenues:
C25: Distribution Revenue at Current Rates | E25: 23950.68312 | I25: =IF(ISBLANK(M25),"",IF(ISBLANK(E25),"",M25-E25)) -> -649.2725186 | M25: 23301.4106 | Q25: =IF(ISBLANK(U25),"",IF(ISBLANK(M25),"",U25-M25)) -> -711.0439821 | U25: =Data!C14 -> 22590.36662
C26: Distribution Revenue at Proposed Rates | E26: 24391.23872 | I26: =IF(ISBLANK(M26),"",IF(ISBLANK(E26),"",M26-E26)) -> -687.0369138 | M26: 23704.20181 | Q26: =IF(ISBLANK(U26),"",IF(ISBLANK(M26),"",U26-M26)) -> -625.2026295 | U26: =Data!C15 -> 23078.99918
C27: Other Revenue:
C28: Specific Service Charges | E28: 1019.92402 | I28: =IF(ISBLANK(M28),"",IF(ISBLANK(E28),"",M28-E28)) -> -12.89002102 | M28: 1007.033999 | Q28: =IF(ISBLANK(U28),"",IF(ISBLANK(M28),"",U28-M28)) -> -18.26582761 | U28: =Data!C17 -> 988.7681716
C29: Late Payment Charges | E29: 309.7543414 | I29: =IF(ISBLANK(M29),"",IF(ISBLANK(E29),"",M29-E29)) -> -5.288662456 | M29: 304.465679 | Q29: =IF(ISBLANK(U29),"",IF(ISBLANK(M29),"",U29-M29)) -> -7.494308703 | U29: =Data!C18 -> 296.9713703
C30: Other Distribution Revenue | E30: 173.5133825 | I30: =IF(ISBLANK(M30),"",IF(ISBLANK(E30),"",M30-E30)) -> -3.290146135 | M30: 170.2232363 | Q30: =IF(ISBLANK(U30),"",IF(ISBLANK(M30),"",U30-M30)) -> -5.3136 | U30: =Data!C19 -> 164.9096363
C31: Other Income and Deductions | E31: 128 | I31: =IF(ISBLANK(M31),"",IF(ISBLANK(E31),"",M31-E31)) -> 0 | M31: 128 | Q31: =IF(ISBLANK(U31),"",IF(ISBLANK(M31),"",U31-M31)) -> 0 | U31: =Data!C20 -> 128
D33: Total Revenue Offsets | E33: 1631.191744 | G33: (7) | I33: =IF(ISBLANK(M33),"",IF(ISBLANK(E33),"",M33-E33)) -> -21.46882961 | M33: 1609.722915 | Q33: =IF(ISBLANK(U33),"",IF(ISBLANK(M33),"",U33-M33)) -> -31.07373631 | U33: =Data!C22 -> 1578.649178
C35: Operating Expenses:
C36: OM+A Expenses | E36: 12690.38764 | I36: =Data!C25-E36 -> 133.8376687 | M36: =IF(ISBLANK(E36),"",E36+I36) -> 12824.22531 | Q36: 0 | U36: =IF(ISBLANK(E36),"",E36+I36+Q36) -> 12824.22531
C37: Depreciation/Amortization | E37: 5000.97205 | I37: =Data!C26-E37 -> -181.2871866 | M37: =IF(ISBLANK(E37),"",E37+I37) -> 4819.684863 | Q37: 0 | U37: =IF(ISBLANK(E37),"",E37+I37+Q37) -> 4819.684863
C38: Property taxes | E38: 165.007372 | I38: =Data!C27-E38 -> 0 | M38: =IF(ISBLANK(E38),"",E38+I38) -> 165.007372 | Q38: 0 | U38: =IF(ISBLANK(E38),"",E38+I38+Q38) -> 165.007372
C39: Capital taxes | E39: =IF(ISBLANK(E48),"",E48) ->  | M39: =IF(ISBLANK(M48),"",M48) ->  | U39: =IF(ISBLANK(U48),"",U48) -> 
C40: Other expenses | E40: 31.29273358 | I40: =Data!C29-E40 -> 0 | M40: =IF(ISBLANK(E40),"",E40+I40) -> 31.29273358 | Q40: 0 | U40: =IF(ISBLANK(E40),"",E40+I40+Q40) -> 31.29273358
B42: 3 | C42: Taxes/PILs
C43: Taxable Income:
D44: Adjustments required to arrive at taxable income | E44: -2912.063358 | G44: (3) | M44: -2691.216491 | U44: =Data!C33 -> -2419.848509
C45: Utility Income Taxes and Rates:
C46: Income taxes (not grossed up) | E46: 365.1843337 | M46: 325.7355803 | U46: =Data!C35 -> 321.0416319
C47: Income taxes (grossed up) | E47: =IF(ISBLANK(E46),"",E46/(1-SUM(E49:E50))) -> 482.0203974 | M47: =IF(ISBLANK(M46),"",M46/(1-SUM(M49:M50))) -> 430.2725714 | U47: =IF(ISBLANK(U46),"",U46/(1-SUM(U49:U50))) -> 423.9329355
C48: Capital Taxes
C49: Federal tax (%) | E49: 0.15 | M49: 0.15 | U49: =Data!C38 -> 0.15
C50: Provincial tax (%) | E50: 0.09238821491 | M50: 0.09295527539 | U50: =Data!C39 -> 0.09270655798
C51: Income Tax Credits | E51: -10 | M51: -60 | U51: =Data!C40 -> -60
B53: 4 | C53: Capitalization/Cost of Capital
C54: Capital Structure:
C55: Long-term debt Capitalization Ratio (%) | E55: 0.56 | M55: 0.56 | U55: =Data!C44 -> 0.56
C56: Short-term debt Capitalization Ratio (%) | E56: 0.04 | G56: (8) | M56: 0.04 | O56: (8) | U56: =Data!C45 -> 0.04 | W56: (8)
C57: Common Equity Capitalization Ratio (%) | E57: 0.4 | M57: 0.4 | U57: =Data!C46 -> 0.4
C58: Prefered Shares Capitalization Ratio (%) | E58: 0 | M58: 0 | U58: =Data!C47 -> 0
E59: =SUM(E55:E58) -> 1 | M59: =SUM(M55:M58) -> 1 | U59: =SUM(U55:U58) -> 1
E60: =IF(ISBLANK(E57),"",IF(SUM(E55:E58)=100%,"","Capital Structure must total 100%")) ->  | M60: =IF(ISBLANK(M57),"",IF(SUM(M55:M58)=100%,"","Capital Structure must total 100%")) ->  | U60: =IF(ISBLANK(U57),"",IF(SUM(U55:U58)=100%,"","Capital Structure must total 100%")) -> 
C61: Cost of Capital
C62: Long-term debt Cost Rate (%) | E62: 0.04601273901 | M62: 0.03959049568 | U62: =Data!C51 -> 0.03836834631
C63: Short-term debt Cost Rate (%) | E63: 0.0216 | M63: 0.0216 | U63: =Data!C52 -> 0.0165
C64: Common Equity Cost Rate (%) | E64: 0.093 | M64: 0.093 | U64: =Data!C53 -> 0.0919
C65: Prefered Shares Cost Rate (%) | E65: 0 | M65: 0 | U65: =Data!C54 -> 0
A68: Notes:
B69: General | C69: Data inputs are required on Sheets 3. Data from Sheet 3 will automatically complete calculations on sheets 4 through 9 (Rate Base through Revenue Requirement). Sheets 4 through 9 do not require any inputs except for notes that the Applicant may wish to enter to support the results. Pale green cells are available on sheets 4 through 9 to enter both footnotes beside key cells and the related text for the notes at the bottom of each sheet.
B70: (1) | C70: All inputs are in dollars ($) except where inputs are individually identified as percentages (%)
B71: (2) | C71: Data in column E is for Application as originally filed. For updated revenue requirement as a result of interrogatory responses, technical or settlement conferences, etc., use colimn M and Adjustments in column I
B72: (3) | C72: Net of addbacks and deductions to arrive at taxable income.
B73: (4) | C73: Average of Gross Fixed Assets at beginning and end of the Test Year
B74: (5) | C74: Average of Accumulated Depreciation at the beginning and end of the Test Year. Enter as a negative amount.
B75: (6) | C75: Select option from drop-down list by clicking on cell M10. This column allows for the application update reflecting the end of discovery or Argument-in-Chief. Also, the outcome of any Settlement Process can be reflected.
B76: (7) | C76: Input total revenue offsets for deriving the base revenue requirement from the service revenue requirement
B77: (8) | C77: 4.0% unless an Applicant has proposed or been approved for another amount.
B78: (9) | C78: Starting with 2013, default Working Capital Allowance factor is 13% (of Cost of Power plus controllable expenses). Alternatively, WCA factor based on lead-lag study or approved WCA factor for another distributor, with supporting rationale.

Sheet 4. Rate_Base
B6: Rate Base and Working Capital
D10: Rate Base
B11: Line No. | D11: Particulars | G11: Initial Application | K11: =IF(ISBLANK('3. Data_Input_Sheet'!M12),"",'3. Data_Input_Sheet'!I12) -> Adjustments | O11: =IF(ISBLANK('3. Data_Input_Sheet'!M12)," ",'3. Data_Input_Sheet'!M12) -> Close of Discovery | S11: =IF(ISBLANK('3. Data_Input_Sheet'!Q12),"",'3. Data_Input_Sheet'!Q12) -> Adjustments | W11: ='3. Data_Input_Sheet'!U12 -> Per Board Decision
B13: 1 | D13: Gross Fixed Assets (average) | E13: (3) | G13: ='3. Data_Input_Sheet'!E16 -> 193294.9524 | K13: ='3. Data_Input_Sheet'!I16 -> -892.0285361 | O13: =G13+K13 -> 192402.9238 | S13: ='3. Data_Input_Sheet'!Q16 -> -5050.000025 | W13: =G13+K13+S13 -> 187352.9238
B14: 2 | D14: Accumulated Depreciation (average) | E14: (3) | G14: ='3. Data_Input_Sheet'!E17 -> -91145.93959 | K14: ='3. Data_Input_Sheet'!I17 -> -92.90914597 | O14: =G14+K14 -> -91238.84874 | S14: ='3. Data_Input_Sheet'!Q17 -> -124.5579744 | W14: =G14+K14+S14 -> -91363.40671
B15: 3 | D15: Net Fixed Assets (average) | E15: (3) | G15: =SUM(G13:G14) -> 102149.0128 | K15: =SUM(K13:K14) -> -984.9376821 | O15: =SUM(O13:O14) -> 101164.0751 | S15: =SUM(S13:S14) -> -5174.557999 | W15: =SUM(W13:W14) -> 95989.51708
B17: 4 | D17: Allowance for Working Capital | E17: (1) | G17: =G30 -> 17741.54554 | K17: =K30 -> -3881.482811 | O17: =O30 -> 13860.06273 | S17: =S30 -> -1312.666546 | W17: =W30 -> 12547.39618
D18: Total Rate Base | G18: =G17+G15 -> 119890.5583 | K18: =K17+K15 -> -4866.420493 | O18: =O17+O15 -> 115024.1378 | S18: =S17+S15 -> -6487.224546 | W18: =W15+W17 -> 108536.9133
B19: 5
C20: (1) | D20: Allowance for Working Capital - Derivation
B24: 6 | D24: Controllable Expenses | G24: ='3. Data_Input_Sheet'!E19 -> 12886.68774 | K24: ='3. Data_Input_Sheet'!I19 -> 133.8376687 | O24: =G24+K24 -> 13020.52541 | S24: ='3. Data_Input_Sheet'!Q19 -> 0 | W24: =G24+K24+S24 -> 13020.52541
B25: 7 | D25: Cost of Power | G25: ='3. Data_Input_Sheet'!E20 -> 123586.7395 | K25: ='3. Data_Input_Sheet'!I20 -> 1716.714425 | O25: =G25+K25 -> 125303.4539 | S25: ='3. Data_Input_Sheet'!Q20 -> -4413.667887 | W25: =G25+K25+S25 -> 120889.786
B26: 8 | D26: Working Capital Base | G26: =SUM(G24:G25) -> 136473.4272 | K26: =K24+K25 -> 1850.552093 | O26: =SUM(O24:O25) -> 138323.9793 | S26: =S24+S25 -> -4413.667887 | W26: =SUM(W24:W25) -> 133910.3114
B28: 9 | D28: Working Capital Rate % | E28: (2) | G28: ='3. Data_Input_Sheet'!E21 -> 0.13 | K28: =O28-G28 -> -0.0298 | O28: ='3. Data_Input_Sheet'!M21 -> 0.1002 | S28: =W28-O28 -> -0.0065 | W28: ='3. Data_Input_Sheet'!U21 -> 0.0937
B30: 10 | D30: Working Capital Allowance | G30: =G26*G28 -> 17741.54554 | K30: =O30-G30 -> -3881.482811 | O30: =O26*O28 -> 13860.06273 | S30: =W30-O30 -> -1312.666546 | W30: =W26*W28 -> 12547.39618
B33: Notes
B34: (2) | D34: Some Applicants may have a unique rate as a result of a lead-lag study. The default rate for 2014 cost of service applications is 13%.
B35: (3) | D35: Average of opening and closing balances for the year.

Sheet 5. Utility Income
B11: Utility Income
B13: Line No. | D13: Particulars | F13: Initial Application | J13: =IF(N13="","","Adjustments") -> Adjustments | N13: =IF(ISBLANK('3. Data_Input_Sheet'!M12),"",'3. Data_Input_Sheet'!M12) -> Close of Discovery | R13: =IF(N13="","","Adjustments") -> Adjustments | V13: ='3. Data_Input_Sheet'!U12 -> Per Board Decision
D15: Operating Revenues:
B16: 1 | D16: Distribution Revenue (at Proposed Rates) | F16: ='3. Data_Input_Sheet'!E26 -> 24391.23872 | J16: =N16-F16 -> -687.0369138 | N16: ='3. Data_Input_Sheet'!M26 -> 23704.20181 | R16: =V16-N16 -> -625.2026295 | V16: =IF(ISBLANK('3. Data_Input_Sheet'!U26),'5. Utility Income'!N16,'3. Data_Input_Sheet'!U26) -> 23078.99918
B17: 2 | D17: Other Revenue | E17: (1) | F17: =F48 -> 1631.191744 | J17: =N17-F17 -> -21.46882961 | N17: =N48 -> 1609.722915 | R17: =V17-N17 -> -31.07373631 | V17: =V48 -> 1578.649178
F18: =SUM(F16:F17) -> 26022.43047 | J18: =SUM(J16:J17) -> -708.5057434 | N18: =SUM(N16:N17) -> 25313.92472 | R18: =SUM(R16:R17) -> -656.2763659 | V18: =SUM(V16:V17) -> 24657.64836
B19: 3 | D19: Total Operating Revenues
D21: Operating Expenses:
B22: 4 | D22: OM+A Expenses | F22: ='3. Data_Input_Sheet'!E36 -> 12690.38764 | J22: ='3. Data_Input_Sheet'!I36 -> 133.8376687 | N22: ='3. Data_Input_Sheet'!M36 -> 12824.22531 | R22: ='3. Data_Input_Sheet'!Q36 -> 0 | V22: ='3. Data_Input_Sheet'!U36 -> 12824.22531
B23: 5 | D23: Depreciation/Amortization | F23: ='3. Data_Input_Sheet'!E37 -> 5000.97205 | J23: ='3. Data_Input_Sheet'!I37 -> -181.2871866 | N23: ='3. Data_Input_Sheet'!M37 -> 4819.684863 | R23: ='3. Data_Input_Sheet'!Q37 -> 0 | V23: ='3. Data_Input_Sheet'!U37 -> 4819.684863
B24: 6 | D24: Property taxes | F24: ='3. Data_Input_Sheet'!E38 -> 165.007372 | J24: ='3. Data_Input_Sheet'!I38 -> 0 | N24: ='3. Data_Input_Sheet'!M38 -> 165.007372 | R24: ='3. Data_Input_Sheet'!Q38 -> 0 | V24: ='3. Data_Input_Sheet'!U38 -> 165.007372
B25: 7 | D25: Capital taxes | F25: ='6. Taxes_PILs'!G25 -> 0 | J25: =N25-F25 -> 0 | N25: ='6. Taxes_PILs'!K25 -> 0 | R25: =V25-N25 -> 0 | V25: ='6. Taxes_PILs'!O25 -> 0
B26: 8 | D26: Other expense | F26: ='3. Data_Input_Sheet'!E40 -> 31.29273358 | J26: ='3. Data_Input_Sheet'!I40 -> 0 | N26: ='3. Data_Input_Sheet'!M40 -> 31.29273358 | R26: ='3. Data_Input_Sheet'!Q40 -> 0 | V26: ='3. Data_Input_Sheet'!U40 -> 31.29273358
F27: =SUM(F22:F26) -> 17887.65979 | J27: =SUM(J22:J26) -> -47.44951784 | N27: =SUM(N22:N26) -> 17840.21028 | R27: =SUM(R22:R26) -> 0 | V27: =SUM(V22:V26) -> 17840.21028
B28: 9 | D28: Subtotal (lines 4 to 8)
B30: 10 | D30: Deemed Interest Expense | F30: ='7. Cost_of_Capital'!P19 -> 3192.821505 | J30: =N30-F30 -> -543.2775771 | N30: ='7. Cost_of_Capital'!P35 -> 2649.543928 | R30: =V30-N30 -> -245.8557151 | V30: ='7. Cost_of_Capital'!P51 -> 2403.688213
B32: 11 | D32: Total Expenses (lines 9 to 10) | F32: =F27+F30 -> 21080.4813 | J32: =J30+J27 -> -590.7270949 | N32: =N30+N27 -> 20489.7542 | R32: =R30+R27 -> -245.8557151 | V32: =V27+V30 -> 20243.89849
B34: 12 | D34: Utility income before income taxes | F34: =F18-(F32) -> 4941.949166 | J34: =J18-(J32) -> -117.7786485 | N34: =N18-(N32) -> 4824.170518 | R34: =R18-(R32) -> -410.4206507 | V34: =V18-(V32) -> 4413.749867
F35: ='6. Taxes_PILs'!G31 -> 482.0203974 | J35: =N35-F35 -> -51.74782601 | N35: ='6. Taxes_PILs'!K31 -> 430.2725714 | R35: =V35-N35 -> -6.339635901 | V35: =IF('6. Taxes_PILs'!O31=0,N35,'6. Taxes_PILs'!O31) -> 423.9329355
B36: 13 | D36: Income taxes (grossed-up)
F37: =F34-F35 -> 4459.928769 | J37: =J34-J35 -> -66.03082247 | N37: =N34-N35 -> 4393.897946 | R37: =R34-R35 -> -404.0810148 | V37: =V34-V35 -> 3989.816931
B38: 14 | D38: Utility net income
B42: Notes
B44: (1) | D44: Specific Service Charges | F44: ='3. Data_Input_Sheet'!E28 -> 1019.92402 | J44: ='3. Data_Input_Sheet'!I28 -> -12.89002102 | N44: ='3. Data_Input_Sheet'!M28 -> 1007.033999 | R44: ='3. Data_Input_Sheet'!Q28 -> -18.26582761 | V44: =IF(ISBLANK('3. Data_Input_Sheet'!U28),N44,'3. Data_Input_Sheet'!U28) -> 988.7681716
D45: Late Payment Charges | F45: ='3. Data_Input_Sheet'!E29 -> 309.7543414 | J45: ='3. Data_Input_Sheet'!I29 -> -5.288662456 | N45: ='3. Data_Input_Sheet'!M29 -> 304.465679 | R45: ='3. Data_Input_Sheet'!Q29 -> -7.494308703 | V45: =IF(ISBLANK('3. Data_Input_Sheet'!U29),N45,'3. Data_Input_Sheet'!U29) -> 296.9713703
D46: Other Distribution Revenue | F46: ='3. Data_Input_Sheet'!E30 -> 173.5133825 | J46: ='3. Data_Input_Sheet'!I30 -> -3.290146135 | N46: ='3. Data_Input_Sheet'!M30 -> 170.2232363 | R46: ='3. Data_Input_Sheet'!Q30 -> -5.3136 | V46: =IF(ISBLANK('3. Data_Input_Sheet'!U30),N46,'3. Data_Input_Sheet'!U30) -> 164.9096363
D47: Other Income and Deductions | F47: ='3. Data_Input_Sheet'!E31 -> 128 | J47: ='3. Data_Input_Sheet'!I31 -> 0 | N47: ='3. Data_Input_Sheet'!M31 -> 128 | R47: ='3. Data_Input_Sheet'!Q31 -> 0 | V47: =IF(ISBLANK('3. Data_Input_Sheet'!U31),N47,'3. Data_Input_Sheet'!U31) -> 128
F48: =SUM(F44:F47) -> 1631.191744 | J48: =SUM(J44:J47) -> -21.46882961 | N48: =SUM(N44:N47) -> 1609.722915 | R48: =SUM(R44:R47) -> -31.07373631 | V48: =SUM(V44:V47) -> 1578.649178
D49: Total Revenue Offsets

Sheet 6. Taxes_PILs
B9: Taxes/PILs
B12: Line No. | D12: Particulars | G12: Application | K12: =IF(ISBLANK('3. Data_Input_Sheet'!M12),"",'3. Data_Input_Sheet'!M12) -> Close of Discovery | O12: ='3. Data_Input_Sheet'!U12 -> Per Board Decision
D14: Determination of Taxable Income
B16: 1 | D16: Utility net income before taxes | G16: ='7. Cost_of_Capital'!P22 -> 4459.928769 | K16: ='7. Cost_of_Capital'!P38 -> 4278.897926 | O16: ='7. Cost_of_Capital'!P54 -> 3989.816931
B18: 2 | D18: Adjustments required to arrive at taxable utility income | G18: ='3. Data_Input_Sheet'!E44 -> -2912.063358 | K18: ='3. Data_Input_Sheet'!M44 -> -2691.216491 | O18: =IF(ISBLANK('3. Data_Input_Sheet'!U44),G18,'3. Data_Input_Sheet'!U44) -> -2419.848509
B20: 3 | D20: Taxable income | G20: =G16+G18 -> 1547.86541 | K20: =K16+K18 -> 1587.681435 | O20: =O16+O18 -> 1569.968422
D22: Calculation of Utility income Taxes
B24: 4 | D24: Income taxes | G24: ='3. Data_Input_Sheet'!E46 -> 365.1843337 | K24: =IF(ISBLANK('3. Data_Input_Sheet'!M46),'6. Taxes_PILs'!G24,'3. Data_Input_Sheet'!M46) -> 325.7355803 | O24: =IF(ISBLANK('3. Data_Input_Sheet'!U46),'6. Taxes_PILs'!K24,'3. Data_Input_Sheet'!U46) -> 321.0416319
B25: 5 | D25: Capital taxes | G25: ='3. Data_Input_Sheet'!E48 -> 0 | K25: =IF(ISBLANK('3. Data_Input_Sheet'!M48),'6. Taxes_PILs'!G25,'3. Data_Input_Sheet'!M48) -> 0 | O25: =IF(ISBLANK('3. Data_Input_Sheet'!U48),'6. Taxes_PILs'!K25,'3. Data_Input_Sheet'!U48) -> 0
G26: =SUM(G24:G25) -> 365.1843337 | K26: =SUM(K24:K25) -> 325.7355803 | O26: =SUM(O24:O25) -> 321.0416319
B27: 6 | D27: Total taxes
B29: 7 | D29: Gross-up of Income Taxes | G29: =(G24/(1-G41))-G24 -> 116.8360637 | K29: =(K24/(1-K41))-K24 -> 104.5369911 | O29: =(O24/(1-O41))-O24 -> 102.8913036
B31: 8 | D31: Grossed-up Income Taxes | G31: =G24+G29 -> 482.0203974 | K31: =K24+K29 -> 430.2725714 | O31: =O24+O29 -> 423.9329355
B33: 9 | D33: PILs / tax Allowance (Grossed-up Income taxes + Capital taxes) | G33: =G26+G29 -> 482.0203974 | K33: =K29+K26 -> 430.2725714 | O33: =O29+O26 -> 423.9329355
B35: 10 | D35: Other tax Credits | G35: ='3. Data_Input_Sheet'!E51 -> -10 | K35: =IF(ISBLANK('3. Data_Input_Sheet'!M51),G35,'3. Data_Input_Sheet'!M51) -> -60 | O35: =IF(ISBLANK('3. Data_Input_Sheet'!U51),K35,'3. Data_Input_Sheet'!U51) -> -60
D37: Tax Rates
B39: 11 | D39: Federal tax (%) | G39: ='3. Data_Input_Sheet'!E49 -> 0.15 | K39: =IF(ISBLANK('3. Data_Input_Sheet'!M49),G39,'3. Data_Input_Sheet'!M49) -> 0.15 | O39: =IF(ISBLANK('3. Data_Input_Sheet'!U49),K39,'3. Data_Input_Sheet'!U49) -> 0.15
B40: 12 | D40: Provincial tax (%) | G40: ='3. Data_Input_Sheet'!E50 -> 0.09238821491 | K40: =IF(ISBLANK('3. Data_Input_Sheet'!M50),G40,'3. Data_Input_Sheet'!M50) -> 0.09295527539 | O40: =IF(ISBLANK('3. Data_Input_Sheet'!U50),K40,'3. Data_Input_Sheet'!U50) -> 0.09270655798
B41: 13 | D41: Total tax rate (%) | G41: =G39+G40 -> 0.2423882149 | K41: =K39+K40 -> 0.2429552754 | O41: =O39+O40 -> 0.242706558
B44: Notes
D45: Capital Taxes not applicable after July 1, 2010 (i.e. for 2011 and later test years)

Sheet 7. Cost_of_Capital
B5: Capitalization/Cost of Capital
B11: Line No. | D11: Particulars | F11: Capitalization Ratio | L11: Cost Rate | P11: Return
F13: Initial Application
F15: (%) | J15: ($) | L15: (%) | P15: ($)
D16: Debt
B17: 1 | D17: Long-term Debt | F17: ='3. Data_Input_Sheet'!E55 -> 0.56 | J17: =$J$26*F17 -> 67138.71265 | L17: ='3. Data_Input_Sheet'!E62 -> 0.04601273901 | P17: =L17*J17 -> 3089.236063
B18: 2 | D18: Short-term Debt | F18: ='3. Data_Input_Sheet'!E56 -> 0.04 | J18: =$J$26*F18 -> 4795.622332 | L18: ='3. Data_Input_Sheet'!E63 -> 0.0216 | P18: =L18*J18 -> 103.5854424
B19: 3 | D19: Total Debt | F19: =SUM(F17:F18) -> 0.6 | J19: =SUM(J17:J18) -> 71934.33498 | L19: =IF(F19=0,0,SUMPRODUCT(F17:F18,L17:L18)/F19) -> 0.04438522308 | P19: =SUM(P17:P18) -> 3192.821505
D21: Equity
B22: 4 | D22: Common Equity | F22: ='3. Data_Input_Sheet'!E57 -> 0.4 | J22: =$J$26*F22 -> 47956.22332 | L22: ='3. Data_Input_Sheet'!E64 -> 0.093 | P22: =L22*J22 -> 4459.928769
B23: 5 | D23: Preferred Shares | F23: ='3. Data_Input_Sheet'!E58 -> 0 | J23: =$J$26*F23 -> 0 | L23: ='3. Data_Input_Sheet'!E65 -> 0 | P23: =L23*J23 -> 0
B24: 6 | D24: Total Equity | F24: =SUM(F22:F23) -> 0.4 | J24: =SUM(J22:J23) -> 47956.22332 | L24: =IF(F24=0,0,SUMPRODUCT(F22:F23,L22:L23)/F24) -> 0.093 | P24: =SUM(P22:P23) -> 4459.928769
B26: 7 | D26: Total | F26: =SUM(F19,F24) -> 1 | J26: ='4. Rate_Base'!G18 -> 119890.5583 | L26: =(L19*F19)+(L24*F24) -> 0.06383113385 | P26: =P19+P24 -> 7652.750274
F29: ='1. Info'!AC1 -> Close of Discovery
F31: (%) | J31: ($) | L31: (%) | P31: ($)
D32: Debt
B33: 1 | D33: Long-term Debt | F33: ='3. Data_Input_Sheet'!M55 -> 0.56 | J33: =$J$42*F33 -> 64413.51717 | L33: ='3. Data_Input_Sheet'!M62 -> 0.03959049568 | P33: =L33*J33 -> 2550.163073
B34: 2 | D34: Short-term Debt | F34: ='3. Data_Input_Sheet'!M56 -> 0.04 | J34: =$J$42*F34 -> 4600.965512 | L34: ='3. Data_Input_Sheet'!M63 -> 0.0216 | P34: =L34*J34 -> 99.38085506
B35: 3 | D35: Total Debt | F35: =SUM(F33:F34) -> 0.6 | J35: =SUM(J33:J34) -> 69014.48268 | L35: =IF(F35=0,0,SUMPRODUCT(F33:F34,L33:L34)/F35) -> 0.0383911293 | P35: =SUM(P33:P34) -> 2649.543928
D37: Equity
B38: 4 | D38: Common Equity | F38: ='3. Data_Input_Sheet'!M57 -> 0.4 | J38: =$J$42*F38 -> 46009.65512 | L38: ='3. Data_Input_Sheet'!M64 -> 0.093 | P38: =L38*J38 -> 4278.897926
B39: 5 | D39: Preferred Shares | F39: ='3. Data_Input_Sheet'!M58 -> 0 | J39: =$J$42*F39 -> 0 | L39: ='3. Data_Input_Sheet'!M65 -> 0 | P39: =L39*J39 -> 0
B40: 6 | D40: Total Equity | F40: =SUM(F38:F39) -> 0.4 | J40: =SUM(J38:J39) -> 46009.65512 | L40: =IF(F40=0,0,SUMPRODUCT(F38:F39,L38:L39)/F40) -> 0.093 | P40: =SUM(P38:P39) -> 4278.897926
B42: 7 | D42: Total | F42: =F35+F40 -> 1 | J42: ='4. Rate_Base'!O18 -> 115024.1378 | L42: =(L35*F35)+(L40*F40) -> 0.06023467758 | P42: =P35+P40 -> 6928.441854
F45: Per Board Decision
F47: (%) | J47: ($) | L47: (%) | P47: ($)
D48: Debt
B49: 8 | D49: Long-term Debt | F49: =IF(ISBLANK('3. Data_Input_Sheet'!U55),F33,'3. Data_Input_Sheet'!U55) -> 0.56 | J49: =$J$58*F49 -> 60780.67142 | L49: =IF(ISBLANK('3. Data_Input_Sheet'!U62),L17,'3. Data_Input_Sheet'!U62) -> 0.03836834631 | P49: =L49*J49 -> 2332.05385
B50: 9 | D50: Short-term Debt | F50: =IF(ISBLANK('3. Data_Input_Sheet'!U56),F34,'3. Data_Input_Sheet'!U56) -> 0.04 | J50: =$J$58*F50 -> 4341.47653 | L50: =IF(ISBLANK('3. Data_Input_Sheet'!U63),L18,'3. Data_Input_Sheet'!U63) -> 0.0165 | P50: =L50*J50 -> 71.63436275
B51: 10 | D51: Total Debt | F51: =SUM(F49:F50) -> 0.6 | J51: =SUM(J49:J50) -> 65122.14796 | L51: =IF(F51=0,0,SUMPRODUCT(F49:F50,L49:L50)/F51) -> 0.03691045656 | P51: =SUM(P49:P50) -> 2403.688213
D53: Equity
B54: 11 | D54: Common Equity | F54: =IF(ISBLANK('3. Data_Input_Sheet'!U57),F38,'3. Data_Input_Sheet'!U57) -> 0.4 | J54: =$J$58*F54 -> 43414.7653 | L54: =IF(ISBLANK('3. Data_Input_Sheet'!U64),L22,'3. Data_Input_Sheet'!U64) -> 0.0919 | P54: =L54*J54 -> 3989.816931
B55: 12 | D55: Preferred Shares | F55: =IF(ISBLANK('3. Data_Input_Sheet'!U58),F39,'3. Data_Input_Sheet'!U58) -> 0 | J55: =$J$58*F55 -> 0 | L55: =IF(ISBLANK('3. Data_Input_Sheet'!U65),L23,'3. Data_Input_Sheet'!U65) -> 0 | P55: =L55*J55 -> 0
B56: 13 | D56: Total Equity | F56: =SUM(F54:F55) -> 0.4 | J56: =SUM(J54:J55) -> 43414.7653 | L56: =IF(F56=0,0,SUMPRODUCT(F54:F55,L54:L55)/F56) -> 0.0919 | P56: =SUM(P54:P55) -> 3989.816931
B58: 14 | D58: Total | F58: =F51+F56 -> 1 | J58: ='4. Rate_Base'!W18 -> 108536.9133 | L58: =(L51*F51)+(L56*F56) -> 0.05890627393 | P58: =P51+P56 -> 6393.505144
B61: Notes
B62: (1) | D62: ='3. Data_Input_Sheet'!C71 -> Data in column E is for Application as originally filed. For updated revenue requirement as a result of interrogatory responses, technical or settlement conferences, etc., use colimn M and Adjustments in column I

Sheet 8. Rev_Def_Suff
P1: =CONCATENATE('2. Table of Contents'!$F$6," ",'2. Table of Contents'!$G$6) -> 
B10: Revenue Deficiency/Sufficiency
F13: Initial Application | J13: =IF(ISBLANK('3. Data_Input_Sheet'!M12),"",'3. Data_Input_Sheet'!M12) -> Close of Discovery | N13: ='3. Data_Input_Sheet'!U12 -> Per Board Decision
B15: Line No. | D15: Particulars | F15: At Current Approved Rates | H15: At Proposed Rates | J15: At Current Approved Rates | L15: At Proposed Rates | N15: At Current Approved Rates | P15: At Proposed Rates
B19: 1 | D19: Revenue Deficiency from Below | H19: =F52 -> 440.5556048 | L19: =J52 -> 287.7911897 | P19: =N52 -> 488.6325621
B20: 2 | D20: Distribution Revenue | F20: ='3. Data_Input_Sheet'!E25 -> 23950.68312 | H20: ='3. Data_Input_Sheet'!E26-H19 -> 23950.68312 | J20: =IF(ISBLANK('3. Data_Input_Sheet'!M25),'3. Data_Input_Sheet'!E25,'3. Data_Input_Sheet'!M25) -> 23301.4106 | L20: =IF(ISBLANK('3. Data_Input_Sheet'!M26),'3. Data_Input_Sheet'!E26-L19,'3. Data_Input_Sheet'!M26-L19) -> 23416.41062 | N20: =IF(ISBLANK('3. Data_Input_Sheet'!U25),'3. Data_Input_Sheet'!M25,'3. Data_Input_Sheet'!U25) -> 22590.36662 | P20: =IF(ISBLANK('3. Data_Input_Sheet'!U26),'3. Data_Input_Sheet'!M26-P19,'3. Data_Input_Sheet'!U26-P19) -> 22590.36662
B21: 3 | D21: Other Operating Revenue Offsets - net | F21: ='5. Utility Income'!F48 -> 1631.191744 | H21: ='5. Utility Income'!F48 -> 1631.191744 | J21: ='5. Utility Income'!N48 -> 1609.722915 | L21: =J21 -> 1609.722915 | N21: ='5. Utility Income'!V48 -> 1578.649178 | P21: ='5. Utility Income'!V48 -> 1578.649178
B22: 4 | D22: Total Revenue | F22: =SUM(F20:F21) -> 25581.87486 | H22: =SUM(H19:H21) -> 26022.43047 | J22: =SUM(J20:J21) -> 24911.13351 | L22: =SUM(L19:L21) -> 25313.92472 | N22: =SUM(N20:N21) -> 24169.01579 | P22: =SUM(P19:P21) -> 24657.64836
B24: 5 | D24: Operating Expenses | F24: ='5. Utility Income'!F27 -> 17887.65979 | H24: ='5. Utility Income'!F27 -> 17887.65979 | J24: ='5. Utility Income'!N27 -> 17840.21028 | L24: ='5. Utility Income'!N27 -> 17840.21028 | N24: ='5. Utility Income'!V27 -> 17840.21028 | P24: ='5. Utility Income'!V27 -> 17840.21028
B25: 6 | D25: Deemed Interest Expense | F25: ='5. Utility Income'!F30 -> 3192.821505 | H25: ='5. Utility Income'!F30 -> 3192.821505 | J25: ='5. Utility Income'!N30 -> 2649.543928 | L25: ='5. Utility Income'!N30 -> 2649.543928 | N25: ='5. Utility Income'!V30 -> 2403.688213 | P25: ='5. Utility Income'!V30 -> 2403.688213
B26: 8 | D26: Total Cost and Expenses | F26: =SUM(F24:F25) -> 21080.4813 | H26: =SUM(H24:H25) -> 21080.4813 | J26: =SUM(J24:J25) -> 20489.7542 | L26: =SUM(L24:L25) -> 20489.7542 | N26: =SUM(N24:N25) -> 20243.89849 | P26: =SUM(P24:P25) -> 20243.89849
B28: 9 | D28: Utility Income Before Income Taxes | F28: =F22-F26 -> 4501.393561 | H28: =H22-H26 -> 4941.949166 | J28: =J22-J26 -> 4421.379308 | L28: =L22-L26 -> 4824.170518 | N28: =N22-N26 -> 3925.117305 | P28: =P22-P26 -> 4413.749867
B30: 10 | D30: Tax Adjustments to Accounting Income per 2013 PILs model | F30: ='3. Data_Input_Sheet'!E44 -> -2912.063358 | H30: ='3. Data_Input_Sheet'!E44 -> -2912.063358 | J30: =IF(ISBLANK('3. Data_Input_Sheet'!M44),'3. Data_Input_Sheet'!E44,'3. Data_Input_Sheet'!M44) -> -2691.216491 | L30: =IF(ISBLANK('3. Data_Input_Sheet'!M44),'3. Data_Input_Sheet'!E44,'3. Data_Input_Sheet'!M44) -> -2691.216491 | N30: =IF(ISBLANK('3. Data_Input_Sheet'!U44),'3. Data_Input_Sheet'!M44,'3. Data_Input_Sheet'!U44) -> -2419.848509 | P30: =IF(ISBLANK('3. Data_Input_Sheet'!U44),'3. Data_Input_Sheet'!M44,'3. Data_Input_Sheet'!U44) -> -2419.848509
B31: 11 | D31: Taxable Income | F31: =SUM(F28:F30) -> 1589.330203 | H31: =SUM(H28:H30) -> 2029.885808 | J31: =SUM(J28+J30) -> 1730.162817 | L31: =L28+L30 -> 2132.954026 | N31: =SUM(N28+N30) -> 1505.268796 | P31: =P28+P30 -> 1993.901358
B33: 12 | D33: Income Tax Rate | F33: ='6. Taxes_PILs'!G41 -> 0.2423882149 | H33: ='6. Taxes_PILs'!G41 -> 0.2423882149 | J33: ='6. Taxes_PILs'!K41 -> 0.2429552754 | L33: ='6. Taxes_PILs'!K41 -> 0.2429552754 | N33: ='6. Taxes_PILs'!O41 -> 0.242706558 | P33: ='6. Taxes_PILs'!O41 -> 0.242706558
B34: 13 | D34: Income Tax on Taxable Income | F34: =F31*F33 -> 385.2349108 | H34: =H31*H33 -> 492.0203974 | J34: =J31*J33 -> 420.3521836 | L34: =L31*L33 -> 518.2124329 | N34: =N31*N33 -> 365.3386082 | P34: =P31*P33 -> 483.9329355
B35: 14 | D35: Income Tax Credits | F35: ='3. Data_Input_Sheet'!E51 -> -10 | H35: ='3. Data_Input_Sheet'!E51 -> -10 | J35: =IF(ISBLANK('3. Data_Input_Sheet'!M51),'3. Data_Input_Sheet'!E51,'3. Data_Input_Sheet'!M51) -> -60 | L35: =IF(ISBLANK('3. Data_Input_Sheet'!M51),'3. Data_Input_Sheet'!E51,'3. Data_Input_Sheet'!M51) -> -60 | N35: =IF(ISBLANK('3. Data_Input_Sheet'!U51),'3. Data_Input_Sheet'!M51,'3. Data_Input_Sheet'!U51) -> -60 | P35: =IF(ISBLANK('3. Data_Input_Sheet'!U51),'3. Data_Input_Sheet'!M51,'3. Data_Input_Sheet'!U51) -> -60
B36: 15 | D36: Utility Net Income | F36: =F28-SUM(F34:F35) -> 4126.158651 | H36: ='5. Utility Income'!F37 -> 4459.928769 | J36: =J28-SUM(J34:J35) -> 4061.027124 | L36: ='5. Utility Income'!N37 -> 4393.897946 | N36: =N28-SUM(N34:N35) -> 3619.778697 | P36: ='5. Utility Income'!V37 -> 3989.816931
B38: 16 | D38: Utility Rate Base | F38: ='4. Rate_Base'!G18 -> 119890.5583 | H38: ='4. Rate_Base'!G18 -> 119890.5583 | J38: ='4. Rate_Base'!O18 -> 115024.1378 | L38: ='4. Rate_Base'!O18 -> 115024.1378 | N38: ='4. Rate_Base'!W18 -> 108536.9133 | P38: ='4. Rate_Base'!W18 -> 108536.9133
B40: 17 | D40: Deemed Equity Portion of Rate Base | F40: ='7. Cost_of_Capital'!J24 -> 47956.22332 | H40: =F40 -> 47956.22332 | J40: ='7. Cost_of_Capital'!J40 -> 46009.65512 | L40: =J40 -> 46009.65512 | N40: ='7. Cost_of_Capital'!J56 -> 43414.7653 | P40: =N40 -> 43414.7653
B42: 18 | D42: Income/(Equity Portion of Rate Base) | F42: =IF(F40=0,0,F36/F40) -> 0.08604010835 | H42: =IF(H40=0,0,H36/H40) -> 0.093 | J42: =IF(J40=0,0,J36/J40) -> 0.08826467213 | L42: =IF(L40=0,0,L36/L40) -> 0.09549947581 | N42: =IF(N40=0,0,N36/N40) -> 0.08337667315 | P42: =IF(P40=0,0,P36/P40) -> 0.0919
B43: 19 | D43: Target Return - Equity on Rate Base | F43: ='7. Cost_of_Capital'!L24 -> 0.093 | H43: ='7. Cost_of_Capital'!L24 -> 0.093 | J43: ='7. Cost_of_Capital'!L40 -> 0.093 | L43: ='7. Cost_of_Capital'!L40 -> 0.093 | N43: ='7. Cost_of_Capital'!L56 -> 0.0919 | P43: ='7. Cost_of_Capital'!L56 -> 0.0919
B44: 20 | D44: Deficiency/Sufficiency in Return on Equity | F44: =F42-F43 -> -0.006959891648 | H44: =H42-H43 -> 0 | J44: =J42-J43 -> -0.004735327865 | L44: =L42-L43 -> 0.002499475807 | N44: =N42-N43 -> -0.008523326851 | P44: =P42-P43 -> 0
B46: 21 | D46: Indicated Rate of Return | F46: =IF(F38=0,0,(F36+F25)/F38) -> 0.06104717719 | H46: =IF(H38=0,0,(H36+H25)/H38) -> 0.06383113385 | J46: =IF(J38=0,0,(J36+J25)/J38) -> 0.05834054643 | L46: =IF(L40=0,0,(L36+L25)/L38) -> 0.0612344679 | N46: =IF(N38=0,0,(N36+N25)/N38) -> 0.05549694319 | P46: =IF(P40=0,0,(P36+P25)/P38) -> 0.05890627393
B47: 22 | D47: Requested Rate of Return on Rate Base | F47: ='7. Cost_of_Capital'!L26 -> 0.06383113385 | H47: ='7. Cost_of_Capital'!L26 -> 0.06383113385 | J47: ='7. Cost_of_Capital'!L42 -> 0.06023467758 | L47: ='7. Cost_of_Capital'!L42 -> 0.06023467758 | N47: ='7. Cost_of_Capital'!L58 -> 0.05890627393 | P47: ='7. Cost_of_Capital'!L58 -> 0.05890627393
B48: 23 | D48: Deficiency/Sufficiency in Rate of Return | F48: =F46-F47 -> -0.002783956659 | H48: =H46-H47 -> 0 | J48: =J46-J47 -> -0.001894131146 | L48: =L46-L47 -> 0.0009997903229 | N48: =N46-N47 -> -0.00340933074 | P48: =P46-P47 -> 0
B50: 24 | D50: Target Return on Equity | F50: =H50 -> 4459.928769 | H50: ='7. Cost_of_Capital'!P24 -> 4459.928769 | J50: =L50 -> 4278.897926 | L50: ='7. Cost_of_Capital'!P40 -> 4278.897926 | N50: =P50 -> 3989.816931 | P50: ='7. Cost_of_Capital'!P56 -> 3989.816931
B51: 25 | D51: Revenue Deficiency/(Sufficiency) | F51: =F50-F36 -> 333.7701182 | H51: =H38*H48 -> 0 | J51: =J50-J36 -> 217.870802 | L51: =L38*L48 -> 115.0000199 | N51: =N50-N36 -> 370.0382348 | P51: =P38*P48 -> 0
B52: 26 | D52: Gross Revenue Deficiency/(Sufficiency) | F52: =F51/(1-F33) -> 440.5556048 | G52: (1) | J52: =J51/(1-J33) -> 287.7911897 | K52: (1) | N52: =N51/(1-N33) -> 488.6325621 | O52: (1)
B55: Notes:
B56: (1) | D56: Revenue Deficiency/Sufficiency divided by (1 - Tax Rate)

Sheet 9. Rev_Reqt
B11: Revenue Requirement
B13: Line No. | D13: Particulars | F13: Application | J13: =IF(ISBLANK('3. Data_Input_Sheet'!M12),"",'3. Data_Input_Sheet'!M12) -> Close of Discovery | N13: ='3. Data_Input_Sheet'!U12 -> Per Board Decision
B15: 1 | D15: OM&A Expenses | F15: ='5. Utility Income'!F22 -> 12690.38764 | J15: ='5. Utility Income'!N22 -> 12824.22531 | N15: ='5. Utility Income'!V22 -> 12824.22531
B16: 2 | D16: Amortization/Depreciation | F16: ='5. Utility Income'!F23 -> 5000.97205 | J16: ='5. Utility Income'!N23 -> 4819.684863 | N16: ='5. Utility Income'!V23 -> 4819.684863
B17: 3 | D17: Property Taxes | F17: ='5. Utility Income'!F24 -> 165.007372 | J17: ='5. Utility Income'!N24 -> 165.007372 | N17: ='5. Utility Income'!V24 -> 165.007372
B18: 4 | D18: Capital Taxes | F18: ='6. Taxes_PILs'!G25 -> 0 | J18: ='6. Taxes_PILs'!K25 -> 0 | N18: ='6. Taxes_PILs'!O25 -> 0
B19: 5 | D19: Income Taxes (Grossed up) | F19: ='6. Taxes_PILs'!G33-F18 -> 482.0203974 | J19: ='6. Taxes_PILs'!K33-J18 -> 430.2725714 | N19: ='6. Taxes_PILs'!O33-N18 -> 423.9329355
B20: 6 | D20: Other Expenses | F20: ='5. Utility Income'!F26 -> 31.29273358 | J20: ='5. Utility Income'!N26 -> 31.29273358 | N20: ='5. Utility Income'!V26 -> 31.29273358
B21: 7 | D21: Return
D22: Deemed Interest Expense | F22: ='8. Rev_Def_Suff'!F25 -> 3192.821505 | J22: ='8. Rev_Def_Suff'!L25 -> 2649.543928 | N22: ='8. Rev_Def_Suff'!P25 -> 2403.688213
D23: Return on Deemed Equity | F23: ='8. Rev_Def_Suff'!F50 -> 4459.928769 | J23: ='8. Rev_Def_Suff'!L50 -> 4278.897926 | N23: ='8. Rev_Def_Suff'!P50 -> 3989.816931
B25: 8 | D25: Service Revenue Requirement (before Revenues) | F25: =SUM(F15:F23) -> 26022.43047 | J25: =SUM(J15:J23) -> 25198.9247 | N25: =SUM(N15:O23) -> 24657.64836
B27: 9 | D27: Revenue Offsets | F27: ='3. Data_Input_Sheet'!E33 -> 1631.191744 | J27: ='3. Data_Input_Sheet'!M33 -> 1609.722915 | N27: ='3. Data_Input_Sheet'!U33 -> 1578.649178
B28: 10 | D28: Base Revenue Requirement | F28: =F25-F27 -> 24391.23872 | J28: =J25-J27 -> 23589.20179 | N28: =N25-N27 -> 23078.99918
D29: (excluding Tranformer Owership Allowance credit adjustment)
B31: 11 | D31: Distribution revenue | F31: ='5. Utility Income'!F16 -> 24391.23872 | J31: ='5. Utility Income'!N16 -> 23704.20181 | N31: ='5. Utility Income'!V16 -> 23078.99918
B32: 12 | D32: Other revenue | F32: ='5. Utility Income'!F17 -> 1631.191744 | J32: ='5. Utility Income'!N17 -> 1609.722915 | N32: ='5. Utility Income'!V17 -> 1578.649178
F33: =SUM(F31:F32) -> 26022.43047 | J33: =SUM(J31:J32) -> 25313.92472 | N33: =SUM(N31:N32) -> 24657.64836
B34: 13 | D34: Total revenue
F35: =F33-F25 -> 0 | J35: =J33-J25 -> 115.0000199 | N35: =N33-N25 -> 0
B36: 14 | D36: Difference (Total Revenue Less Distribution Revenue Requirement before Revenues) | H36: (1) | L36: (1) | Q36: (1)
B38: Notes
B39: (1) | D39: Line 11 - Line 8

Sheet 10. Tracking_Sheet
B14: Tracking Form
B15: The last row shown is the most current estimate of the cost of service data reflecting the original application and any updates provided by the applicant distributor (for updated evidence, responses to interrogatories, undertakings, etc.) Please ensure a Reference (Column B) and/or Item Description (Column C) is entered. Please note that unused rows will automatically be hidden and the PRINT AREA set when the PRINT BUTTON on Sheet 1 is activated. (1) Short reference to evidence material (interrogatory response, undertaking, exhibit number, Board Decision, Code, Guideline, Report of the Board, etc.) (2) Short description of change, issue, etc. 60 Tracking Rows have been provided below. If you require more, please contact Industry Relations @ IndustryRelations@ontarioenergyboard.ca.
B16: Summary of Proposed Changes - 2017
D18: Cost of Capital | F18: Rate Base and Capital Expenditures | I18: Operating Expenses | L18: Revenue Requirement
B19: Reference (1) | C19: Item / Description (2) | D19: Regulated Return on Capital | E19: Regulated Rate of Return | F19: Rate Base | G19: Working Capital | H19: Working Capital Allowance ($) | I19: Amortization / Depreciation | J19: Taxes / PILs | K19: OM&A | L19: Service Revenue Requirement | M19: Other Revenues | N19: Base Revenue Requirement | O19: Grossed up Revenue Deficiency / Sufficiency
C21: Original Application | D21: 7652.750274 | E21: 0.06383113385 | F21: 119890.5583 | G21: 136473.4272 | H21: 17741.54554 | I21: 5000.97205 | J21: 482.0203974 | K21: 12690.38764 | L21: 26022.43047 | M21: 1631.191744 | N21: 24391.23872 | O21: 440.5556048
A23: 1 | B23: Multiple Interrogatories | C23: 2014 Actuals Updated | D23: 7683.989352 | E23: 0.06381523266 | F23: 120409.9559 | G23: 136473.4272 | H23: 17741.54554 | I23: 4999.605717 | J23: 483.5399284 | K23: 12690.38764 | L23: 26053.82274 | M23: 1630.306744 | N23: 24423.516 | O23: 627.8703764 | Q23: =IF(AND(ISBLANK(B23), ISBLANK(C23)), "X", "") -> 
C24: Change | D24: =IF(D23="","",D23-D21) -> 31.23907801 | E24: =IF(E23="","",E23-E21) -> -1.59011828e-05 | F24: 519.3976157 | G24: 0 | H24: 0 | I24: -1.366332638 | J24: 1.519531064 | K24: 0 | L24: 31.39227643 | M24: -0.885 | N24: 32.27727643 | O24: 187.3147717
A26: 2 | B26: 4-Energy Probe-50 & 54 | C26: Tax Updates (CCA Class 10 to 50, Adjusted Tax Credits) | D26: 7684.111756 | E26: 0.06381624923 | F26: 120409.9559 | G26: 136473.4272 | H26: 17741.54554 | I26: 4999.605717 | J26: 416.3037219 | K26: 12690.38764 | L26: 25986.70894 | M26: 1630.306744 | N26: 24356.4022 | O26: 663.1624918 | Q26: =IF(AND(ISBLANK(B26), ISBLANK(C26)), "X", "") -> 
C27: Change | D27: =IF(D26="","",D26-D23) -> 0.1224043943 | E27: =IF(E26="","",E26-E23) -> 1.016563733e-06 | F27: 0 | G27: 0 | H27: 0 | I27: 0 | J27: -67.23620651 | K27: 0 | L27: -67.11380212 | M27: 0 | N27: -67.11380212 | O27: 35.29211535
A29: 3 | B29: 4.0-Staff-31 | C29: Updated Post-Retirement Benefits Actuarial Valuation | D29: 7683.289394 | E29: 0.06380271104 | F29: 120422.6163 | G29: 136570.8152 | H29: 17754.20597 | I29: 4999.605717 | J29: 492.6724981 | K29: 12787.77561 | L29: 26159.64332 | M29: 1630.306744 | N29: 24529.33658 | O29: 690.4692086 | Q29: =IF(AND(ISBLANK(B29), ISBLANK(C29)), "X", "") -> 
C30: Change | D30: =IF(D29="","",D29-D26) -> -0.8223624392 | E30: =IF(E29="","",E29-E26) -> -1.353818762e-05 | F30: 12.66043594 | G30: 97.38796874 | H30: 12.66043594 | I30: 0 | J30: 76.36877616 | K30: 97.38796874 | L30: 172.9343825 | M30: 0 | N30: 172.9343825 | O30: 27.30671679
A32: 4 | B32: 3.0-Staff-25; 3.0-Energy Probe-33/34; 3.0-VECC-26/27/31;1.0-CCC-17; | C32: Updated Load Forecast | D32: 7688.158533 | E32: 0.06380376941 | F32: 120496.9331 | G32: 137142.4823 | H32: 17828.5227 | I32: 4999.605717 | J32: 493.6633743 | K32: 12787.77561 | L32: 26165.50334 | M32: 1627.890667 | N32: 24537.61267 | O32: 664.4635956 | Q32: =IF(AND(ISBLANK(B32), ISBLANK(C32)), "X", "") -> 
C33: Change | D33: =IF(D32="","",D32-D29) -> 4.869139526 | E33: =IF(E32="","",E32-E29) -> 1.058372513e-06 | F33: 74.31673054 | G33: 571.667158 | H33: 74.31673054 | I33: 0 | J33: 0.9908762273 | K33: 0 | L33: 5.860015753 | M33: -2.416077332 | N33: 8.276093085 | O33: -26.00561303
A35: 5 | B35: 2.0-Staff-6 & Multiple Others | C35: DSP/Capital Updates to capacity solutions (HONI TS contributions & new MS9 substation) and changes to timing of In Service dates | D35: 7600.343509 | E35: 0.06378732068 | F35: 119151.3208 | G35: 137142.4823 | H35: 17828.5227 | I35: 4934.684883 | J35: 485.2614183 | K35: 12787.77561 | L35: 26004.36552 | M35: 1627.890667 | N35: 24376.47486 | O35: 542.5292424 | Q35: =IF(AND(ISBLANK(B35), ISBLANK(C35)), "X", "") -> 
C36: Change | D36: =IF(D35="","",D35-D32) -> -87.81502461 | E36: =IF(E35="","",E35-E32) -> -1.644872953e-05 | F36: -1345.612298 | G36: 0 | H36: 0 | I36: -64.92083406 | J36: -8.401956008 | K36: 0 | L36: -161.1378147 | M36: 0 | N36: -161.1378147 | O36: -121.9343532
A38: 6 | B38: Undertaking TC2.5 | C38: Adjustment for CDM Activities | D38: 7606.710234 | E38: 0.06378686314 | F38: 119251.9879 | G38: 137916.8452 | H38: 17929.18987 | I38: 4934.684883 | J38: 486.6034483 | K38: 12787.77561 | L38: 26012.07428 | M38: 1627.890667 | N38: 24384.18361 | O38: 516.5658093 | Q38: =IF(AND(ISBLANK(B38), ISBLANK(C38)), "X", "") -> 
C39: Change | D39: =IF(D38="","",D38-D35) -> 6.366725389 | E39: =IF(E38="","",E38-E35) -> -4.57547362e-07 | F39: 100.6671663 | G39: 774.3628179 | H39: 100.6671663 | I39: 0 | J39: 1.342030032 | K39: 0 | L39: 7.70875542 | M39: 0 | N39: 7.70875542 | O39: -25.96343307
A41: 7 | B41: Update June 2015 | C41: Revised Working Capital Proposal (to 10.91% from 13.0%) | D41: 7424.334128 | E41: 0.06379964232 | F41: 116369.5259 | G41: 137916.8452 | H41: 15046.72781 | I41: 4934.684883 | J41: 448.1906306 | K41: 12787.77561 | L41: 25791.28535 | M41: 1627.890667 | N41: 24163.39469 | O41: 540.2406243 | Q41: =IF(AND(ISBLANK(B41), ISBLANK(C41)), "X", "") -> 
C42: Change | D42: =IF(D41="","",D41-D38) -> -182.3761059 | E42: =IF(E41="","",E41-E38) -> 1.277918128e-05 | F42: -2882.462064 | G42: 0 | H42: -2882.462064 | I42: 0 | J42: -38.4128177 | K42: 0 | L42: -220.7889236 | M42: 0 | N42: -220.7889236 | O42: 23.67481499
A44: 8 | B44: Update June 2015 | C44: Revised Load Forecast | D44: 7426.93187 | E44: 0.06379979332 | F44: 116409.9676 | G44: 138287.5296 | H44: 15087.16948 | I44: 4934.684883 | J44: 448.7293546 | K44: 12787.77561 | L44: 25794.42182 | M44: 1581.002219 | N44: 24213.4196 | O44: 507.3324517 | Q44: =IF(AND(ISBLANK(B44), ISBLANK(C44)), "X", "") -> 
C45: Change | D45: =IF(D44="","",D44-D41) -> 2.597742116 | E45: =IF(E44="","",E44-E41) -> 1.509992756e-07 | F45: 40.44167336 | G45: 370.6844488 | H45: 40.44167336 | I45: 0 | J45: 0.5387239582 | K45: 0 | L45: 3.136466074 | M45: -46.88844814 | N45: 50.02491421 | O45: -32.90817254
A47: 9 | B47: Update June 2015 | C47: Move MS9 Land to WIP in 2015 ($158.7k), Added back to Land 2018 | D47: 7416.873142 | E47: 0.06380037625 | F47: 116251.2446 | G47: 138287.5296 | H47: 15087.16948 | I47: 4934.684883 | J47: 446.6150417 | K47: 12787.77561 | L47: 25782.24878 | M47: 1581.002219 | N47: 24201.24656 | O47: 498.3913808 | Q47: =IF(AND(ISBLANK(B47), ISBLANK(C47)), "X", "") -> 
C48: Change | D48: =IF(D47="","",D47-D44) -> -10.05872831 | E48: =IF(E47="","",E47-E44) -> 5.829295383e-07 | F48: -158.723 | G48: 0 | H48: 0 | I48: 0 | J48: -2.114312855 | K48: 0 | L48: -12.17304116 | M48: 0 | N48: -12.17304116 | O48: -8.941070905
A50: 10 | B50: Update June 2015 | C50: Update Regulatory Expenses (higher rate application costs partially offset by lower forecast OEB assessment fees) | D50: 7417.137445 | E50: 0.06380046735 | F50: 116255.2212 | G50: 138323.9793 | H50: 15091.14614 | I50: 4934.684883 | J50: 446.6680127 | K50: 12824.22531 | L50: 25819.01575 | M50: 1581.002219 | N50: 24238.01354 | O50: 512.0829452 | Q50: =IF(AND(ISBLANK(B50), ISBLANK(C50)), "X", "") -> 
C51: Change | D51: =IF(D50="","",D50-D47) -> 0.264303292 | E51: =IF(E50="","",E50-E47) -> 9.109907396e-08 | F51: 3.97666227 | G51: 36.4497 | H51: 3.97666227 | I51: 0 | J51: 0.05297096481 | K51: 36.4497 | L51: 36.76697426 | M51: 0 | N51: 36.76697426 | O51: 13.69156434
A53: 11 | B53: Update June 2015 | C53: Update Interest Rates for 2015 Loan ($15m loan drawn June 2015 at 2.71%) | D53: 7002.595767 | E53: 0.06023467758 | F53: 116255.2212 | G53: 138323.9793 | H53: 15091.14614 | I53: 4934.684883 | J53: 446.6680127 | K53: 12824.22531 | L53: 25404.47408 | M53: 1581.002219 | N53: 23823.47186 | O53: 389.8632865 | Q53: =IF(AND(ISBLANK(B53), ISBLANK(C53)), "X", "") ->  | S53: Numbers going into Oral Hearing 30 June 2015
C54: Change | D54: =IF(D53="","",D53-D50) -> -414.5416783 | E54: =IF(E53="","",E53-E50) -> -0.003565789768 | F54: 0 | G54: 0 | H54: 0 | I54: 0 | J54: 0 | K54: 0 | L54: -414.5416783 | M54: 0 | N54: -414.5416783 | O54: -122.2196587
A56: 12 | B56: Oral Hearing J2.12 | C56: Correct 2015 weighted debt rate - to 4.11% from 4.24% | D56: 7002.595767 | E56: 0.06023467758 | F56: 116255.2212 | G56: 138323.9793 | H56: 15091.14614 | I56: 4934.684883 | J56: 446.6680127 | K56: 12824.22531 | L56: 25404.47408 | M56: 1581.002219 | N56: 23823.47186 | O56: 392.4524164 | Q56: =IF(AND(ISBLANK(B56), ISBLANK(C56)), "X", "") -> 
C57: Change | D57: =IF(D56="","",D56-D53) -> 0 | E57: =IF(E56="","",E56-E53) -> 0 | F57: 0 | G57: 0 | H57: 0 | I57: 0 | J57: 0 | K57: 0 | L57: 0 | M57: 0 | N57: 0 | O57: 2.589129881
A59: 13 | B59: Oral Hearing J3.2 | C59: Correct Other Revenue for 2016-2019 | D59: 7002.595767 | E59: 0.06023467758 | F59: 116255.2212 | G59: 138323.9793 | H59: 15091.14614 | I59: 4934.684883 | J59: 446.6680127 | K59: 12824.22531 | L59: 25404.47408 | M59: 1609.722915 | N59: 23794.75116 | O59: 375.6526531 | Q59: =IF(AND(ISBLANK(B59), ISBLANK(C59)), "X", "") -> 
C60: Change | D60: =IF(D59="","",D59-D56) -> 0 | E60: =IF(E59="","",E59-E56) -> 0 | F60: 0 | G60: 0 | H60: 0 | I60: 0 | J60: 0 | K60: 0 | L60: 0 | M60: 28.72069586 | N60: -28.72069586 | O60: -16.79976326
A62: 14 | B62: Oral Hearing J1.1 | C62: Reduce cost of power expense lead to 20.89 from 22.64 | D62: 6928.441854 | E62: 0.06023467758 | F62: 115024.1378 | G62: 138323.9793 | H62: 13860.06273 | I62: 4934.684883 | J62: 430.2725714 | K62: 12824.22531 | L62: 25313.92472 | M62: 1609.722915 | N62: 23704.20181 | O62: 402.7912096 | Q62: =IF(AND(ISBLANK(B62), ISBLANK(C62)), "X", "") ->  | S62: At end of Oral Hearing, filed 8 July 2015, Exhibit K4.1
C63: Change | D63: =IF(D62="","",D62-D59) -> -74.15391262 | E63: =IF(E62="","",E62-E59) -> 0 | F63: -1231.083416 | G63: 0 | H63: -1231.083416 | I63: 0 | J63: -16.39544134 | K63: 0 | L63: -90.54935397 | M63: 0 | N63: -90.54935397 | O63: 27.13855647
A65: 15 | B65: Board Decision | C65: Working Cap Allowance to 9.37% | D65: 6879.419022 | E65: 0.06027966788 | F65: 114125.0319 | G65: 138323.9793 | H65: 12960.95686 | I65: 4934.684883 | J65: 418.3025691 | K65: 12824.22531 | L65: 25252.93189 | M65: 1609.722915 | N65: 23643.20897 | O65: 381.7367516 | Q65: =IF(AND(ISBLANK(B65), ISBLANK(C65)), "X", "") -> 
C66: Change | D66: =IF(D65="","",D65-D62) -> -49.02283273 | E66: =IF(E65="","",E65-E62) -> 4.499029794e-05 | F66: -899.1058655 | G66: 0 | H66: -899.1058655 | I66: 0 | J66: -11.97000226 | K66: 0 | L66: -60.99283499 | M66: 0 | N66: -60.99283499 | O66: -21.05445803
A68: 16 | B68: Board Decision | C68: Update Cost of Capital with 2016 OEB parameters for 2016-2019 | D68: 6726.815423 | E68: 0.05894250638 | F68: 114125.0319 | G68: 138323.9793 | H68: 12960.95686 | I68: 4934.684883 | J68: 400.338701 | K68: 12824.22531 | L68: 25082.36442 | M68: 1609.722915 | N68: 23472.64151 | O68: 368.9477649 | Q68: =IF(AND(ISBLANK(B68), ISBLANK(C68)), "X", "") -> 
C69: Change | D69: =IF(D68="","",D68-D65) -> -152.6035989 | E69: =IF(E68="","",E68-E65) -> -0.0013371615 | F69: 0 | G69: 0 | H69: 0 | I69: 0 | J69: -17.96386811 | K69: 0 | L69: -170.567467 | M69: 0 | N69: -170.567467 | O69: -12.78898671
A71: 17 | B71: Board Decision | C71: Reduce Capital Budget by $400k in 2015, 2016 & 2017 to match new connection costs with 1.5% customer growth | D71: 6660.654634 | E71: 0.05886178781 | F71: 113157.5319 | G71: 138323.9793 | H71: 12960.95686 | I71: 4909.68487 | J71: 405.4953311 | K71: 12824.22531 | L71: 24996.36025 | M71: 1609.722915 | N71: 23386.63733 | O71: 374.3667123 | Q71: =IF(AND(ISBLANK(B71), ISBLANK(C71)), "X", "") -> 
C72: Change | D72: =IF(D71="","",D71-D68) -> -66.16078836 | E72: =IF(E71="","",E71-E68) -> -8.071856275e-05 | F72: -967.5000016 | G72: 0 | H72: 0 | I72: -25.00001322 | J72: 5.156630084 | K72: 0 | L72: -86.00417149 | M72: 0 | N72: -86.00417149 | O72: 5.418947405
A74: 18 | B74: Board Decision | C74: Move HONI Enfield TS contributions from capital in 2015 ($1.35m) and 2018 ($5.4m), adding back in 2018. | D74: 6432.10631 | E74: 0.05890340373 | F74: 109197.5319 | G74: 138323.9793 | H74: 12960.95686 | I74: 4819.684863 | J74: 432.6247616 | K74: 12824.22531 | L74: 24704.94135 | M74: 1609.722915 | N74: 23095.21843 | O74: 147.5104143
C75: Change | D75: =IF(D74="","",D74-D71) -> -228.5483245 | E75: =IF(E74="","",E74-E71) -> 4.161591381e-05 | F75: -3959.999998 | G75: 0 | H75: 0 | I75: -90.00000665 | J75: 27.12943056 | K75: 0 | L75: -291.4189006 | M75: 0 | N75: -291.4189006 | O75: -226.856298
A77: 19 | B77: Board Decision | C77: Adjust Rate Base for Depreciation Expense Deferral Account | D77: =IF($C77="","",'7. Cost_of_Capital'!$P$58) -> 6393.505144 | E77: =IF($C77="","",'7. Cost_of_Capital'!$L$58) -> 0.05890627393 | F77: =IF($C77="","",'4. Rate_Base'!$W$18) -> 108536.9133 | G77: =IF($C77="","",'4. Rate_Base'!$W$26) -> 133910.3114 | H77: =IF($C77="","",'4. Rate_Base'!$W$30) -> 12547.39618 | I77: =IF($C77="","",'9. Rev_Reqt'!$N$16) -> 4819.684863 | J77: =IF($C77="","",'9. Rev_Reqt'!$N$19) -> 423.9329355 | K77: =IF($C77="","",'9. Rev_Reqt'!$N$15) -> 12824.22531 | L77: =IF($C77="","",'9. Rev_Reqt'!$N$25) -> 24657.64836 | M77: =IF($C77="","",'9. Rev_Reqt'!$N$32) -> 1578.649178 | N77: =IF($C77="","",'9. Rev_Reqt'!$N$28) -> 23078.99918 | O77: =IF($C77="","",'8. Rev_Def_Suff'!$N$52) -> 488.6325621
C78: Change | D78: =IF(D77="","",D77-D74) -> -38.60116559 | E78: =IF(E77="","",E77-E74) -> 2.870205833e-06 | F78: -660.618681 | G78: -4413.667887 | H78: -413.560681 | I78: 0 | J78: -8.691826167 | K78: 0 | L78: -47.29299176 | M78: -31.07373631 | N78: -16.21925545 | O78: 341.1221478
A80: 20
C81: Change
A83: 21
C84: Change
A86: 22
C87: Change
A89: 23
C90: Change
A92: 24
C93: Change
A95: 25
C96: Change
A98: 26
C99: Change
A101: 27
C102: Change
A104: 28
C105: Change
A107: 29
C108: Change
A110: 30
C111: Change
A113: 31
C114: Change
A116: 32
C117: Change
A119: 33
C120: Change
A122: 34
C123: Change
A125: 35
C126: Change
A128: 36
C129: Change
A131: 37
C132: Change
A134: 38
C135: Change
A137: 39
C138: Change
A140: 40
C141: Change
A143: 41
C144: Change
A146: 42
C147: Change
A149: 43
C150: Change
A152: 44
C153: Change
A155: 45
C156: Change
A158: 46
C159: Change
A161: 47
C162: Change
A164: 48
C165: Change
A167: 49
C168: Change
A170: 50
C171: Change
A173: 51
C174: Change
A176: 52
C177: Change
A179: 53
C180: Change
A182: 54
C183: Change
A185: 55
C186: Change
A188: 56
C189: Change
A191: 57
C192: Change
A194: 58
C195: Change
A197: 59
C198: Change
A200: 60
C201: Change
R203: Page Break 4

Sheet Not part of Model ==>

Sheet Data
B1: LINKED DIRECTLY TO "Data for OEB RRWF' TAB in MASTER WORKING FILE - NO ACTION REQUIRED
B4: Rate Base
B5: Gross Fixed Assets (average) | C5: 187352.9238
B6: Accumulated Depreciation (average) | C6: -91363.40671
B7: Allowance for Working Capital:
B8: Controllable Expenses | C8: 13020.52541
B9: Cost of Power | C9: 120889.786
B10: Working Capital Rate (%) | C10: 0.0937
B12: Utility Income
B13: Operating Revenues: | F13: Deficiency
B14: Distribution Revenue at Current Rates | C14: 22590.36662 | F14: =C15-C14 -> 488.6325621
B15: Distribution Revenue at Proposed Rates | C15: 23078.99918
B16: Other Revenue:
B17: Specific Service Charges | C17: 988.7681716
B18: Late Payment Charges | C18: 296.9713703
B19: Other Distribution Revenue | C19: 164.9096363
B20: Other Income and Deductions | C20: 128
B22: Total Revenue Offsets | C22: 1578.649178
B24: Operating Expenses:
B25: OM+A Expenses | C25: 12824.22531
B26: Depreciation/Amortization | C26: 4819.684863
B27: Property taxes | C27: 165.007372
B28: Capital taxes
B29: Other expenses | C29: 31.29273358
B31: Taxes/PILs
B32: Taxable Income:
B33: Adjustments required to arrive at taxable income | C33: -2419.848509
B34: Utility Income Taxes and Rates:
B35: Income taxes (not grossed up) | C35: 321.0416319
B36: Income taxes (grossed up) | C36: 423.9329355
B37: Capital Taxes
B38: Federal tax (%) | C38: 0.15
B39: Provincial tax (%) | C39: 0.09270655798
B40: Income Tax Credits | C40: -60
B42: Capitalization/Cost of Capital
B43: Capital Structure:
B44: Long-term debt Capitalization Ratio (%) | C44: 0.56
B45: Short-term debt Capitalization Ratio (%) | C45: 0.04
B46: Common Equity Capitalization Ratio (%) | C46: 0.4
B47: Prefered Shares Capitalization Ratio (%) | C47: 0
C48: 1
B50: Cost of Capital
B51: Long-term debt Cost Rate (%) | C51: 0.03836834631
B52: Short-term debt Cost Rate (%) | C52: 0.0165
B53: Common Equity Cost Rate (%) | C53: 0.0919
B54: Prefered Shares Cost Rate (%)
